[Event "Live Chess"]
[Site "Chess.com"]
[Date "2023.05.21"]
[Round "-"]
[White "ossie57"]
[Black "matt1979"]
[Result "0-1"]
[WhiteElo "1906"]
[BlackElo "1545"]
[TimeControl "300"]
[EndTime "4:37:23 PDT"]
[Termination "matt1979 won by resignation"]

1. d4 {[%clk 0:04:58]} 1... f5 {[%clk 0:04:57.3]} 2. Nc3 {[%clk 0:04:55.2]} 2...
Nf6 {[%clk 0:04:53.7]} 3. Bf4 {[%clk 0:04:50.4]} 3... e6 {[%clk 0:04:52.5]} 4.
e3 {[%clk 0:04:47.6]} 4... Bb4 {[%clk 0:04:50.9]} 5. a3 {[%clk 0:04:43.7]} 5...
Bxc3+ {[%clk 0:04:49.7]} 6. bxc3 {[%clk 0:04:43.1]} 6... Ne4 {[%clk 0:04:48.2]}
7. Qd3 {[%clk 0:04:36.9]} 7... O-O {[%clk 0:04:45.9]} 8. f3 {[%clk 0:04:36.3]}
8... Nf6 {[%clk 0:04:43.4]} 9. h4 {[%clk 0:04:32.8]} 9... b6 {[%clk 0:04:39.3]}
10. Qd2 {[%clk 0:04:27.3]} 10... Bb7 {[%clk 0:04:35.7]} 11. h5 {[%clk
0:04:25.8]} 11... h6 {[%clk 0:04:34.1]} 12. Bc4 {[%clk 0:04:19]} 12... d5 {[%clk
0:04:26.6]} 13. Bd3 {[%clk 0:04:15.8]} 13... Nbd7 {[%clk 0:04:12.9]} 14. c4
{[%clk 0:04:11.8]} 14... c6 {[%clk 0:04:11.4]} 15. Ne2 {[%clk 0:03:58.3]} 15...
Rc8 {[%clk 0:04:02.9]} 16. Ng3 {[%clk 0:03:41.6]} 16... Qe8 {[%clk 0:03:57.9]}
17. O-O-O {[%clk 0:03:38.9]} 17... c5 {[%clk 0:03:45.4]} 18. Kb2 {[%clk
0:03:32.2]} 18... cxd4 {[%clk 0:03:42.2]} 19. exd4 {[%clk 0:03:31.3]} 19... dxc4
{[%clk 0:03:39.3]} 20. c3 {[%clk 0:03:24.4]} 20... cxd3 {[%clk 0:03:37.4]} 21.
Qxd3 {[%clk 0:03:24.1]} 21... Bd5 {[%clk 0:03:27.2]} 22. Rhe1 {[%clk 0:03:11.9]}
22... Bc4 {[%clk 0:03:24.9]} 23. Qd2 {[%clk 0:03:05.5]} 23... Nb8 {[%clk
0:03:09]} 24. Re5 {[%clk 0:02:44.6]} 24... Nd5 {[%clk 0:03:01]} 25. Rxd5 {[%clk
0:02:23.2]} 25... exd5 {[%clk 0:02:55.6]} 26. Bxb8 {[%clk 0:02:19.8]} 26... Qb5+
{[%clk 0:02:51.2]} 27. Ka1 {[%clk 0:02:18.7]} 27... Rxb8 {[%clk 0:02:45.1]} 28.
Qc2 {[%clk 0:02:09.1]} 28... Qb3 {[%clk 0:02:33.8]} 29. Qxb3 {[%clk 0:02:06.8]}
29... Bxb3 {[%clk 0:02:31.6]} 30. Rb1 {[%clk 0:02:06.7]} 30... Bc4 {[%clk
0:02:29.8]} 31. Re1 {[%clk 0:02:05.9]} 0-1

[Event "Live Chess"]
[Site "Chess.com"]
[Date "2023.05.21"]
[Round "-"]
[White "Doge_Dandolo"]
[Black "smoggyrabbit"]
[Result "1-0"]
[WhiteElo "1888"]
[BlackElo "1686"]
[TimeControl "300"]
[EndTime "4:37:40 PDT"]
[Termination "Doge_Dandolo won on time"]

1. Nf3 {[%clk 0:04:57.7]} 1... e6 {[%clk 0:04:57.8]} 2. c4 {[%clk 0:04:56.2]}
2... f5 {[%clk 0:04:56]} 3. g3 {[%clk 0:04:47.6]} 3... Nf6 {[%clk 0:04:54.3]} 4.
Bg2 {[%clk 0:04:40.3]} 4... d5 {[%clk 0:04:49.9]} 5. d3 {[%clk 0:04:33.3]} 5...
c6 {[%clk 0:04:46.4]} 6. O-O {[%clk 0:04:31.6]} 6... Bd6 {[%clk 0:04:45.2]} 7.
Nc3 {[%clk 0:04:30.5]} 7... O-O {[%clk 0:04:44.2]} 8. e4 {[%clk 0:04:27.9]} 8...
fxe4 {[%clk 0:04:36]} 9. dxe4 {[%clk 0:04:26.5]} 9... Nxe4 {[%clk 0:03:41.6]}
10. Nxe4 {[%clk 0:04:22.8]} 10... dxe4 {[%clk 0:03:40.4]} 11. Ng5 {[%clk
0:04:20.4]} 11... e3 {[%clk 0:03:17.6]} 12. Bxe3 {[%clk 0:04:17.3]} 12... Be5
{[%clk 0:03:13.1]} 13. Qc2 {[%clk 0:04:14.4]} 13... g6 {[%clk 0:03:04.7]} 14.
Rad1 {[%clk 0:04:11.3]} 14... Qe7 {[%clk 0:03:01.5]} 15. Rfe1 {[%clk 0:04:02.8]}
15... Nd7 {[%clk 0:02:57.9]} 16. a3 {[%clk 0:03:52]} 16... Nf6 {[%clk
0:02:30.1]} 17. b4 {[%clk 0:03:44.2]} 17... Rd8 {[%clk 0:01:47.6]} 18. Rxd8+
{[%clk 0:03:41.4]} 18... Qxd8 {[%clk 0:01:46]} 19. Rd1 {[%clk 0:03:39.8]} 19...
Qc7 {[%clk 0:01:31.7]} 20. Nf3 {[%clk 0:03:28.4]} 20... Ng4 {[%clk 0:00:55.5]}
21. Bg5 {[%clk 0:03:18.4]} 21... Bd7 {[%clk 0:00:32.9]} 22. h3 {[%clk
0:03:04.6]} 22... Nf6 {[%clk 0:00:20.5]} 23. Nxe5 {[%clk 0:03:02]} 23... Qxe5
{[%clk 0:00:18.8]} 24. Bxf6 {[%clk 0:02:59.8]} 24... Qxf6 {[%clk 0:00:17.3]} 25.
Rxd7 {[%clk 0:02:56.1]} 25... Rf8 {[%clk 0:00:13.6]} 26. Qd2 {[%clk 0:02:44]}
26... Qa1+ {[%clk 0:00:11.1]} 27. Kh2 {[%clk 0:02:42]} 27... Qf6 {[%clk
0:00:07]} 28. f4 {[%clk 0:02:37.4]} 28... e5 {[%clk 0:00:03.2]} 29. fxe5 {[%clk
0:02:33.2]} 29... Qxe5 {[%clk 0:00:01.5]} 30. Rxb7 {[%clk 0:02:26.1]} 1-0

[Event "Live Chess"]
[Site "Chess.com"]
[Date "2023.05.21"]
[Round "-"]
[White "blunderabit"]
[Black "Sweet-O"]
[Result "1-0"]
[WhiteElo "1823"]
[BlackElo "1427"]
[TimeControl "300"]
[EndTime "4:37:42 PDT"]
[Termination "blunderabit won by resignation"]

1. e4 {[%clk 0:04:57.8]} 1... e5 {[%clk 0:04:59.2]} 2. Nf3 {[%clk 0:04:56.1]}
2... Nf6 {[%clk 0:04:59.1]} 3. d4 {[%clk 0:04:53.5]} 3... exd4 {[%clk
0:04:57.1]} 4. e5 {[%clk 0:04:49.2]} 4... Nd5 {[%clk 0:04:54.9]} 5. Qxd4 {[%clk
0:04:42.9]} 5... c6 {[%clk 0:04:53.3]} 6. Bc4 {[%clk 0:04:34.4]} 6... Qb6 {[%clk
0:04:48]} 7. Bxd5 {[%clk 0:04:27.8]} 7... Qxd4 {[%clk 0:04:45.5]} 8. Bxf7+
{[%clk 0:04:25.5]} 8... Kxf7 {[%clk 0:04:43.2]} 9. Nxd4 {[%clk 0:04:24.1]} 9...
Bc5 {[%clk 0:04:40.3]} 10. Be3 {[%clk 0:04:21.3]} 10... Re8 {[%clk 0:04:33.7]}
11. O-O {[%clk 0:03:53.7]} 11... Rxe5 {[%clk 0:04:29.9]} 12. Nf3 {[%clk
0:03:52.4]} 12... Rd5 {[%clk 0:04:21.5]} 13. Nc3 {[%clk 0:03:49]} 13... Rh5
{[%clk 0:04:17.7]} 14. g4 {[%clk 0:03:35.5]} 14... Bxe3 {[%clk 0:03:58.6]} 15.
gxh5 {[%clk 0:03:13.4]} 15... Bc5 {[%clk 0:03:51.6]} 16. Ne4 {[%clk 0:03:08.4]}
16... Be7 {[%clk 0:03:48.4]} 17. Rfe1 {[%clk 0:03:02.5]} 17... d5 {[%clk
0:03:43.4]} 18. Neg5+ {[%clk 0:03:00]} 18... Bxg5 {[%clk 0:03:41.7]} 19. Nxg5+
{[%clk 0:02:58.4]} 19... Kf6 {[%clk 0:03:33.9]} 20. Nxh7+ {[%clk 0:02:45.9]}
20... Kf7 {[%clk 0:03:32.5]} 21. Ng5+ {[%clk 0:02:42.5]} 21... Kf6 {[%clk
0:03:31.5]} 22. h4 {[%clk 0:02:39.1]} 22... Bg4 {[%clk 0:03:27.3]} 23. Re8
{[%clk 0:02:36.4]} 23... Bxh5 {[%clk 0:03:22.8]} 24. Rh8 {[%clk 0:02:29.2]}
24... Bg6 {[%clk 0:03:16.6]} 25. c3 {[%clk 0:02:18.4]} 25... Ke7 {[%clk
0:03:04]} 26. Re1+ {[%clk 0:02:15.9]} 26... Kd7 {[%clk 0:03:01.9]} 27. Rg8
{[%clk 0:02:04.3]} 27... Bd3 {[%clk 0:02:50.7]} 28. Rxg7+ {[%clk 0:02:01.4]}
28... Kd6 {[%clk 0:02:48.7]} 29. Re6+ {[%clk 0:01:54.8]} 29... Kc5 {[%clk
0:02:46.7]} 30. Re8 {[%clk 0:01:53.2]} 30... Kb6 {[%clk 0:02:43.3]} 31. h5
{[%clk 0:01:45.2]} 31... a5 {[%clk 0:02:38.3]} 32. h6 {[%clk 0:01:43.9]} 32...
Ka7 {[%clk 0:02:31.3]} 33. h7 {[%clk 0:01:36.6]} 33... Bxh7 {[%clk 0:02:28.5]}
34. Nxh7 {[%clk 0:01:34.2]} 34... Na6 {[%clk 0:02:26.6]} 35. Rxa8+ {[%clk
0:01:32.4]} 35... Kxa8 {[%clk 0:02:24.8]} 1-0

[Event "Live Chess"]
[Site "Chess.com"]
[Date "2023.05.21"]
[Round "-"]
[White "Mechhead7"]
[Black "DoYouLikeCurry"]
[Result "1-0"]
[WhiteElo "1774"]
[BlackElo "1424"]
[TimeControl "300"]
[EndTime "4:37:44 PDT"]
[Termination "Mechhead7 won by resignation"]

1. e4 {[%clk 0:04:59]} 1... c6 {[%clk 0:04:58.8]} 2. d4 {[%clk 0:04:57.5]} 2...
d5 {[%clk 0:04:58]} 3. exd5 {[%clk 0:04:57.4]} 3... cxd5 {[%clk 0:04:57.2]} 4.
c4 {[%clk 0:04:56.9]} 4... e6 {[%clk 0:04:52.2]} 5. Nc3 {[%clk 0:04:55.8]} 5...
Nf6 {[%clk 0:04:50.6]} 6. Nf3 {[%clk 0:04:54.6]} 6... g6 {[%clk 0:04:49.1]} 7.
Bg5 {[%clk 0:04:51.2]} 7... Bg7 {[%clk 0:04:48]} 8. c5 {[%clk 0:04:45.4]} 8...
Nc6 {[%clk 0:04:44.4]} 9. a3 {[%clk 0:04:44.3]} 9... Bd7 {[%clk 0:04:38.2]} 10.
Qd2 {[%clk 0:04:43.2]} 10... O-O {[%clk 0:04:36.3]} 11. Be2 {[%clk 0:04:33.8]}
11... Rc8 {[%clk 0:04:34.4]} 12. O-O {[%clk 0:04:31.9]} 12... Qc7 {[%clk
0:04:30]} 13. Bf4 {[%clk 0:04:25.8]} 13... Qd8 {[%clk 0:04:27.2]} 14. Rfe1
{[%clk 0:04:20]} 14... b6 {[%clk 0:04:17.1]} 15. b4 {[%clk 0:04:17.8]} 15...
bxc5 {[%clk 0:04:15.6]} 16. bxc5 {[%clk 0:04:16.7]} 16... Re8 {[%clk 0:04:10]}
17. Ba6 {[%clk 0:04:06.7]} 17... Rb8 {[%clk 0:03:56.3]} 18. Bxb8 {[%clk
0:04:04.4]} 18... Qxb8 {[%clk 0:03:56.2]} 19. Nb5 {[%clk 0:04:00.1]} 19... Ne7
{[%clk 0:03:45.5]} 20. Nd6 {[%clk 0:03:56.2]} 20... Rd8 {[%clk 0:03:37.3]} 21.
Rab1 {[%clk 0:03:54.9]} 21... Qc7 {[%clk 0:03:34.4]} 22. Rb7 {[%clk 0:03:41.6]}
1-0

[Event "Live Chess"]
[Site "Chess.com"]
[Date "2023.05.21"]
[Round "-"]
[White "JoRoSaR"]
[Black "Crowded_House"]
[Result "1-0"]
[WhiteElo "1707"]
[BlackElo "1644"]
[TimeControl "300"]
[EndTime "4:37:46 PDT"]
[Termination "JoRoSaR won by checkmate"]

1. e4 {[%clk 0:04:56.2]} 1... e6 {[%clk 0:04:59.7]} 2. d4 {[%clk 0:04:54.8]}
2... d5 {[%clk 0:04:59.3]} 3. exd5 {[%clk 0:04:54.2]} 3... exd5 {[%clk
0:04:58.1]} 4. Bd3 {[%clk 0:04:53.5]} 4... Bd6 {[%clk 0:04:56.7]} 5. Ne2 {[%clk
0:04:52.9]} 5... Ne7 {[%clk 0:04:56]} 6. Bf4 {[%clk 0:04:51.6]} 6... O-O {[%clk
0:04:48.4]} 7. O-O {[%clk 0:04:46.7]} 7... Bf5 {[%clk 0:04:44.1]} 8. Bxd6 {[%clk
0:04:45.7]} 8... Qxd6 {[%clk 0:04:41.1]} 9. Ng3 {[%clk 0:04:45.1]} 9... Bxd3
{[%clk 0:04:38.7]} 10. Qxd3 {[%clk 0:04:45]} 10... Nd7 {[%clk 0:04:30.5]} 11.
Nd2 {[%clk 0:04:44.4]} 11... c6 {[%clk 0:04:28.8]} 12. Rfe1 {[%clk 0:04:43.8]}
12... Rfe8 {[%clk 0:04:27.5]} 13. Re2 {[%clk 0:04:43.3]} 13... Ng6 {[%clk
0:04:26.3]} 14. Rae1 {[%clk 0:04:42.4]} 14... Kf8 {[%clk 0:04:24.1]} 15. Nf5
{[%clk 0:04:38.7]} 15... Qf6 {[%clk 0:04:17.2]} 16. g3 {[%clk 0:04:33.6]} 16...
Rxe2 {[%clk 0:04:16.1]} 17. Rxe2 {[%clk 0:04:33.4]} 17... Re8 {[%clk 0:04:15]}
18. Ne3 {[%clk 0:04:19.7]} 18... Kg8 {[%clk 0:04:02.2]} 19. Qb3 {[%clk 0:04:13]}
19... b6 {[%clk 0:03:57.3]} 20. c3 {[%clk 0:04:11.5]} 20... h5 {[%clk
0:03:49.3]} 21. Qa4 {[%clk 0:04:10.7]} 21... Ra8 {[%clk 0:03:45.1]} 22. Nxd5
{[%clk 0:04:07.5]} 22... cxd5 {[%clk 0:03:34]} 23. Qxd7 {[%clk 0:04:05.8]} 23...
h4 {[%clk 0:03:21.4]} 24. Qxd5 {[%clk 0:04:02.6]} 24... Rd8 {[%clk 0:03:17]} 25.
Qe4 {[%clk 0:03:58.8]} 25... hxg3 {[%clk 0:03:14.6]} 26. hxg3 {[%clk 0:03:57.2]}
26... Qg5 {[%clk 0:02:55.4]} 27. Nf3 {[%clk 0:03:54]} 27... Qb5 {[%clk
0:02:48.3]} 28. Kg2 {[%clk 0:03:52.4]} 28... Kf8 {[%clk 0:02:44.4]} 29. Ne5
{[%clk 0:03:49.2]} 29... Nxe5 {[%clk 0:02:42.4]} 30. Qxe5 {[%clk 0:03:48.5]}
30... Qxe5 {[%clk 0:02:37.1]} 31. Rxe5 {[%clk 0:03:47.4]} 31... Rd7 {[%clk
0:02:36.4]} 32. f4 {[%clk 0:03:46.1]} 32... f6 {[%clk 0:02:35.8]} 33. Re4 {[%clk
0:03:44.5]} 33... Kf7 {[%clk 0:02:34.9]} 34. Kf3 {[%clk 0:03:44]} 34... g6
{[%clk 0:02:30.8]} 35. g4 {[%clk 0:03:43.3]} 35... Kg7 {[%clk 0:02:24.1]} 36. c4
{[%clk 0:03:41.6]} 36... Kf7 {[%clk 0:02:22.4]} 37. b3 {[%clk 0:03:40.7]} 37...
Kg7 {[%clk 0:02:20.3]} 38. d5 {[%clk 0:03:40.2]} 38... Kf7 {[%clk 0:02:17.4]}
39. Re6 {[%clk 0:03:39.6]} 39... Kg7 {[%clk 0:02:08.3]} 40. g5 {[%clk
0:03:38.2]} 40... fxg5 {[%clk 0:02:06.2]} 41. fxg5 {[%clk 0:03:36.9]} 41... Kf7
{[%clk 0:02:04.4]} 42. Ke4 {[%clk 0:03:33.4]} 42... Rb7 {[%clk 0:01:58.6]} 43.
Ke5 {[%clk 0:03:31.3]} 43... b5 {[%clk 0:01:55.5]} 44. d6 {[%clk 0:03:26.2]}
44... bxc4 {[%clk 0:01:45.9]} 45. bxc4 {[%clk 0:03:26.1]} 45... Rb2 {[%clk
0:01:38.6]} 46. d7 {[%clk 0:03:21.2]} 46... Re2+ {[%clk 0:01:32.9]} 47. Kd5
{[%clk 0:03:19.8]} 47... Rxe6 {[%clk 0:01:24.4]} 48. d8=Q {[%clk 0:03:18.5]}
48... Re7 {[%clk 0:01:21.9]} 49. c5 {[%clk 0:03:14]} 49... Rb7 {[%clk 0:01:15]}
50. Kd6 {[%clk 0:03:10.8]} 50... Rb1 {[%clk 0:01:10.9]} 51. Qf6+ {[%clk
0:03:08.4]} 51... Ke8 {[%clk 0:01:08.7]} 52. Qe7# {[%clk 0:03:07.3]} 1-0

[Event "Live Chess"]
[Site "Chess.com"]
[Date "2023.05.21"]
[Round "-"]
[White "1600x"]
[Black "zdanevych"]
[Result "0-1"]
[WhiteElo "1869"]
[BlackElo "1562"]
[TimeControl "300"]
[EndTime "4:38:24 PDT"]
[Termination "zdanevych won on time"]

1. e4 {[%clk 0:04:50.8]} 1... c5 {[%clk 0:04:58.3]} 2. Nf3 {[%clk 0:04:44.5]}
2... e6 {[%clk 0:04:57.4]} 3. Nc3 {[%clk 0:04:42.4]} 3... d5 {[%clk 0:04:56.7]}
4. exd5 {[%clk 0:04:40.4]} 4... exd5 {[%clk 0:04:56.6]} 5. Bb5+ {[%clk 0:04:37]}
5... Nc6 {[%clk 0:04:55.5]} 6. O-O {[%clk 0:04:34.3]} 6... a6 {[%clk 0:04:53.1]}
7. Bxc6+ {[%clk 0:04:07]} 7... bxc6 {[%clk 0:04:53]} 8. d4 {[%clk 0:03:58]} 8...
Be6 {[%clk 0:04:43.1]} 9. Ne5 {[%clk 0:03:35.2]} 9... Qb6 {[%clk 0:04:32.8]} 10.
Na4 {[%clk 0:03:31.7]} 10... Qb5 {[%clk 0:04:23.8]} 11. Nc3 {[%clk 0:03:01.2]}
11... Qb7 {[%clk 0:04:12.6]} 12. Nf3 {[%clk 0:02:58.2]} 12... Nf6 {[%clk
0:04:00.3]} 13. Re1 {[%clk 0:02:55.3]} 13... Be7 {[%clk 0:03:58.8]} 14. b3
{[%clk 0:02:39.3]} 14... O-O {[%clk 0:03:55.8]} 15. Ba3 {[%clk 0:02:37]} 15...
cxd4 {[%clk 0:03:40.7]} 16. Bxe7 {[%clk 0:02:33.9]} 16... Qxe7 {[%clk
0:03:31.9]} 17. Nxd4 {[%clk 0:02:32.4]} 17... Qd6 {[%clk 0:03:24.2]} 18. Qe2
{[%clk 0:02:29.5]} 18... Rfe8 {[%clk 0:03:14.9]} 19. Qe5 {[%clk 0:02:27.2]}
19... Qb4 {[%clk 0:02:49.5]} 20. Nxc6 {[%clk 0:02:22]} 20... Qc5 {[%clk
0:02:23.9]} 21. Nd4 {[%clk 0:02:17.6]} 21... Qxc3 {[%clk 0:02:21.4]} 22. Qe3
{[%clk 0:02:14.2]} 22... Qxe3 {[%clk 0:02:17.5]} 23. fxe3 {[%clk 0:02:12]} 23...
Ne4 {[%clk 0:02:10]} 24. Rf1 {[%clk 0:02:09.5]} 24... g6 {[%clk 0:01:56.8]} 25.
Rad1 {[%clk 0:02:03.7]} 25... Rac8 {[%clk 0:01:53.2]} 26. Rd3 {[%clk 0:02:00.5]}
26... Rc3 {[%clk 0:01:50.4]} 27. a4 {[%clk 0:01:56.3]} 27... Rxd3 {[%clk
0:01:35]} 28. cxd3 {[%clk 0:01:53.3]} 28... Nc5 {[%clk 0:01:33.2]} 29. h3 {[%clk
0:01:51]} 29... Nxd3 {[%clk 0:01:31.4]} 30. Nc6 {[%clk 0:01:38.8]} 30... Nc5
{[%clk 0:01:11.1]} 31. b4 {[%clk 0:01:35]} 31... Nxa4 {[%clk 0:01:08.3]} 32. Ra1
{[%clk 0:01:31.9]} 32... Nc3 {[%clk 0:01:00.3]} 33. Rxa6 {[%clk 0:01:26.1]}
33... Bd7 {[%clk 0:00:47.9]} 34. Nd4 {[%clk 0:01:22.9]} 34... Rb8 {[%clk
0:00:42.6]} 35. Ra3 {[%clk 0:01:00.1]} 35... Ne4 {[%clk 0:00:38.9]} 36. Ra5
{[%clk 0:00:58.3]} 36... Be6 {[%clk 0:00:35.5]} 37. b5 {[%clk 0:00:55.6]} 37...
Nc3 {[%clk 0:00:32.3]} 38. b6 {[%clk 0:00:53.6]} 38... Rxb6 {[%clk 0:00:30.8]}
39. g4 {[%clk 0:00:51.3]} 39... Rb1+ {[%clk 0:00:29.2]} 40. Kg2 {[%clk
0:00:49.4]} 40... Rb2+ {[%clk 0:00:28.4]} 41. Kg1 {[%clk 0:00:45]} 41... Ne2+
{[%clk 0:00:27.5]} 42. Kf1 {[%clk 0:00:43.2]} 42... Nxd4 {[%clk 0:00:26.5]} 43.
exd4 {[%clk 0:00:40.6]} 43... Rb1+ {[%clk 0:00:25.3]} 44. Kf2 {[%clk 0:00:38.9]}
44... Rd1 {[%clk 0:00:24.5]} 45. Ra4 {[%clk 0:00:36.1]} 45... Rd2+ {[%clk
0:00:23.1]} 46. Ke3 {[%clk 0:00:34.1]} 46... Rh2 {[%clk 0:00:22.2]} 47. Kf4
{[%clk 0:00:32.5]} 47... Rxh3 {[%clk 0:00:21.1]} 48. g5 {[%clk 0:00:30.9]} 48...
Rh4+ {[%clk 0:00:19.5]} 49. Ke5 {[%clk 0:00:26.5]} 49... Re4+ {[%clk 0:00:18.1]}
50. Kd6 {[%clk 0:00:24.2]} 50... Rg4 {[%clk 0:00:16.4]} 51. Kc5 {[%clk
0:00:22.5]} 51... Rxg5 {[%clk 0:00:15.7]} 52. Kb4 {[%clk 0:00:20.3]} 52... Rg4
{[%clk 0:00:15.1]} 53. Kc5 {[%clk 0:00:19]} 53... Rf4 {[%clk 0:00:12.9]} 54.
Ra8+ {[%clk 0:00:16.4]} 54... Kg7 {[%clk 0:00:11.8]} 55. Ra2 {[%clk 0:00:14.2]}
55... h5 {[%clk 0:00:11.5]} 56. Rg2 {[%clk 0:00:12.5]} 56... Kf6 {[%clk
0:00:10.4]} 57. Rh2 {[%clk 0:00:11.1]} 57... Kf5 {[%clk 0:00:10]} 58. Rh1 {[%clk
0:00:08.4]} 58... h4 {[%clk 0:00:08.1]} 59. Rh2 {[%clk 0:00:07.3]} 59... g5
{[%clk 0:00:08]} 60. Rh1 {[%clk 0:00:06.3]} 60... Rf3 {[%clk 0:00:06.9]} 61. Re1
{[%clk 0:00:05]} 61... h3 {[%clk 0:00:06.5]} 62. Rxe6 {[%clk 0:00:03.4]} 62...
fxe6 {[%clk 0:00:05.7]} 63. Kd6 {[%clk 0:00:02.7]} 63... h2 {[%clk 0:00:05.6]}
64. Kc5 {[%clk 0:00:01.4]} 64... h1=Q {[%clk 0:00:05.5]} 65. Kc6 {[%clk
0:00:00.7]} 65... Qg2 {[%clk 0:00:05.4]} 66. Kd6 {[%clk 0:00:00.4]} 66... Rd3
{[%clk 0:00:05.1]} 67. Ke7 {[%clk 0:00:00.1]} 67... Qd2 {[%clk 0:00:05]} 0-1

[Event "Live Chess"]
[Site "Chess.com"]
[Date "2023.05.21"]
[Round "-"]
[White "TheSmoulderingMaster"]
[Black "booktrunk"]
[Result "1-0"]
[WhiteElo "1635"]
[BlackElo "1280"]
[TimeControl "300"]
[EndTime "4:38:24 PDT"]
[Termination "TheSmoulderingMaster won by checkmate"]

1. e4 {[%clk 0:04:58.3]} 1... d5 {[%clk 0:04:55.5]} 2. exd5 {[%clk 0:04:57.4]}
2... Qxd5 {[%clk 0:04:53.8]} 3. Nc3 {[%clk 0:04:56.8]} 3... Qe5+ {[%clk
0:04:52.3]} 4. Be2 {[%clk 0:04:55.4]} 4... Bg4 {[%clk 0:04:50]} 5. d4 {[%clk
0:04:50.5]} 5... Qe6 {[%clk 0:04:47]} 6. d5 {[%clk 0:04:45.6]} 6... Qe5 {[%clk
0:04:43.6]} 7. Be3 {[%clk 0:04:43.4]} 7... Bxe2 {[%clk 0:04:42.1]} 8. Ngxe2
{[%clk 0:04:42.1]} 8... e6 {[%clk 0:04:40.8]} 9. O-O {[%clk 0:04:37.9]} 9... Bd6
{[%clk 0:04:36.1]} 10. Bf4 {[%clk 0:04:34.8]} 10... Qh5 {[%clk 0:04:26.7]} 11.
Bxd6 {[%clk 0:04:31.7]} 11... cxd6 {[%clk 0:04:25.7]} 12. dxe6 {[%clk
0:04:30.9]} 12... fxe6 {[%clk 0:04:19.8]} 13. Qxd6 {[%clk 0:04:28.1]} 13... Qf5
{[%clk 0:04:14.9]} 14. Nd4 {[%clk 0:04:21]} 14... Qf7 {[%clk 0:04:05.6]} 15.
Nxe6 {[%clk 0:04:12.4]} 15... Qd7 {[%clk 0:04:01.1]} 16. Qf8# {[%clk 0:04:09.8]}
1-0

[Event "Live Chess"]
[Site "Chess.com"]
[Date "2023.05.21"]
[Round "-"]
[White "f4nomore"]
[Black "chessfiction"]
[Result "0-1"]
[WhiteElo "1385"]
[BlackElo "2311"]
[TimeControl "300"]
[EndTime "4:38:35 PDT"]
[Termination "chessfiction won by resignation"]

1. d4 {[%clk 0:04:55.1]} 1... d5 {[%clk 0:04:58.9]} 2. Bg5 {[%clk 0:04:52.2]}
2... h6 {[%clk 0:04:57.6]} 3. Bh4 {[%clk 0:04:50.4]} 3... Nc6 {[%clk 0:04:56.4]}
4. e3 {[%clk 0:04:48.3]} 4... g5 {[%clk 0:04:53.6]} 5. Bg3 {[%clk 0:04:47]} 5...
Bg7 {[%clk 0:04:53.1]} 6. Nf3 {[%clk 0:04:43.8]} 6... Nf6 {[%clk 0:04:51.4]} 7.
Bd3 {[%clk 0:04:40.7]} 7... Bg4 {[%clk 0:04:50.3]} 8. Be2 {[%clk 0:04:39.2]}
8... Qd7 {[%clk 0:04:49.4]} 9. O-O {[%clk 0:04:37]} 9... O-O-O {[%clk
0:04:47.1]} 10. Ne5 {[%clk 0:04:32.7]} 10... Nxe5 {[%clk 0:04:44.2]} 11. dxe5
{[%clk 0:04:31]} 11... Bxe2 {[%clk 0:04:43.4]} 12. Qxe2 {[%clk 0:04:28]} 12...
Ne4 {[%clk 0:04:43.3]} 13. Nd2 {[%clk 0:04:19.6]} 13... Nxg3 {[%clk 0:04:41]}
14. fxg3 {[%clk 0:04:17.4]} 14... Bxe5 {[%clk 0:04:40.9]} 15. Rxf7 {[%clk
0:04:11]} 15... Bxb2 {[%clk 0:04:40]} 16. Raf1 {[%clk 0:04:08.4]} 16... Qe6
{[%clk 0:04:32.5]} 17. Nb3 {[%clk 0:04:03.7]} 17... d4 {[%clk 0:04:26.8]} 18. e4
{[%clk 0:03:34.7]} 18... Qb6 {[%clk 0:04:17.7]} 19. Kh1 {[%clk 0:03:31.6]} 19...
e5 {[%clk 0:04:15.5]} 20. R7f6 {[%clk 0:03:24.6]} 20... c6 {[%clk 0:04:12.3]}
21. Qg4+ {[%clk 0:03:19.6]} 21... Kb8 {[%clk 0:04:10.2]} 22. h3 {[%clk
0:03:06.8]} 22... Ba3 {[%clk 0:04:04.1]} 23. Qf5 {[%clk 0:03:02.3]} 23... Qb5
{[%clk 0:03:52.3]} 24. Qg6 {[%clk 0:02:45.3]} 24... Rdg8 {[%clk 0:03:38.8]} 25.
Qf7 {[%clk 0:02:37.3]} 25... Rf8 {[%clk 0:03:33.5]} 26. Qe6 {[%clk 0:02:34.9]}
26... Qxf1+ {[%clk 0:03:32.1]} 27. Rxf1 {[%clk 0:02:29.8]} 27... Rxf1+ {[%clk
0:03:32]} 28. Kh2 {[%clk 0:02:27.9]} 28... Rhf8 {[%clk 0:03:25.3]} 29. Qxe5+
{[%clk 0:02:24.7]} 29... Ka8 {[%clk 0:03:24.1]} 30. Na5 {[%clk 0:02:09.5]} 30...
Rb1 {[%clk 0:03:13.5]} 31. Nc4 {[%clk 0:02:02.2]} 31... Bb4 {[%clk 0:03:03.9]}
32. Qg7 {[%clk 0:01:53.7]} 32... a5 {[%clk 0:02:57.5]} 33. Nb6+ {[%clk
0:01:43.7]} 33... Ka7 {[%clk 0:02:54.4]} 34. Nd7 {[%clk 0:01:40.7]} 34... Rff1
{[%clk 0:02:52.4]} 35. g4 {[%clk 0:01:37.3]} 35... Bd6+ {[%clk 0:02:44.1]} 36.
e5 {[%clk 0:01:35.6]} 36... Bc7 {[%clk 0:02:34.7]} 37. Qxh6 {[%clk 0:01:20.8]}
37... Rbe1 {[%clk 0:02:26.4]} 38. Qxg5 {[%clk 0:01:15]} 38... Rf7 {[%clk
0:02:21.6]} 39. Qd2 {[%clk 0:00:48.1]} 39... Re4 {[%clk 0:02:09.6]} 40. Qxa5+
{[%clk 0:00:43.9]} 40... Bxa5 {[%clk 0:02:07.9]} 0-1